fUSD/lending_fUSD_20260521
["ID","MTS","AMOUNT","RATE_DAILY","PERIOD"]
[422763904,1779371750000,-500.0,0.00039483,120]
[422763907,1779371750000,-674.21,0.00039483,120]
[422763908,1779371750000,-500.0,0.00039483,120]
[422763909,1779371750000,-474.12184586,0.00039483,120]
[422763910,1779371750000,-2675.57,0.00039483,120]
[422763911,1779371750000,-674.21,0.00039483,120]
[422763912,1779371750000,-500.0,0.00039483,120]
[422763913,1779371750000,-500.0,0.00039483,120]
[422763915,1779371750000,-2675.57,0.00039483,120]
[422763914,1779371750000,-438.72703378,0.00039483,120]
[422763906,1779371750000,-2675.57,0.00039483,120]
[422763926,1779371751000,-674.21,0.00039483,120]
[422763923,1779371751000,-500.0,0.00039483,120]
[422763924,1779371751000,-2675.57,0.00039483,120]
[422763922,1779371751000,-500.0,0.00039483,120]
[422763916,1779371751000,-674.21,0.00039483,120]
[422763921,1779371751000,-674.21,0.00039483,120]
[422763919,1779371751000,-500.0,0.00039483,120]
[422763918,1779371751000,-203.96979746,0.00039483,120]
[422763917,1779371751000,-267.60406379,0.00039483,120]
[422763920,1779371751000,-2675.57,0.00039483,120]
[422763925,1779371751000,-500.0,0.00039483,120]
[422763927,1779371751000,-500.0,0.00039483,120]
[422763929,1779371751000,-2675.57,0.00039483,120]
[422763938,1779371751000,-538.3839579,0.00039483,120]
[422763936,1779371751000,-2675.57,0.00039483,120]
[422763934,1779371751000,-500.0,0.00039483,120]
[422763935,1779371751000,-500.0,0.00039483,120]
[422763937,1779371751000,-674.21,0.00039483,120]
[422763933,1779371751000,-500.0,0.00039483,120]
[422763930,1779371751000,-500.0,0.00039483,120]
[422763931,1779371751000,-674.21,0.00039483,120]
[422763932,1779371751000,-500.0,0.00039483,120]
[422763928,1779371751000,-500.0,0.00039483,120]
[422763947,1779371752000,-2675.57,0.00039483,120]
[422763939,1779371752000,-500.0,0.00039483,120]
[422763940,1779371752000,-159.10649093,0.00039483,120]
[422763942,1779371752000,-500.0,0.00039483,120]
[422763941,1779371752000,-2675.57,0.00039483,120]
[422763944,1779371752000,-674.21,0.00039483,120]
[422763943,1779371752000,-500.0,0.00039483,120]
[422763946,1779371752000,-500.0,0.00039483,120]
[422763945,1779371752000,-528.44513317,0.00039483,120]
[422763948,1779371752000,-518.94215909,0.00039483,120]
[422763950,1779371752000,-674.21,0.00039483,120]
[422763952,1779371752000,-2675.69023383,0.00039483,120]
[422763951,1779371752000,-500.0,0.00039483,120]
[422763954,1779371752000,-500.0,0.00039483,120]
[422763953,1779371752000,-500.0,0.00039483,120]
[422763956,1779371752000,-674.26408552,0.00039483,120]
[422763955,1779371752000,-500.0,0.00039483,120]
[422763958,1779371752000,-556.90688135,0.00039483,120]
[422763957,1779371752000,-500.0,0.00039483,120]
[422763949,1779371752000,-500.0,0.00039483,120]
[422763966,1779371753000,-500.0,0.00039483,120]
[422763967,1779371753000,-500.0,0.00039483,120]
[422763965,1779371753000,-3124.27,0.00039483,120]
[422763964,1779371753000,-500.0,0.00039483,120]
[422763960,1779371753000,-500.0,0.00039483,120]
[422763963,1779371753000,-500.0,0.00039483,120]
[422763961,1779371753000,-500.0,0.00039483,120]
[422763959,1779371753000,-500.0,0.00039483,120]
[422763962,1779371753000,-3124.27,0.00039483,120]
[422763968,1779371753000,-3124.27,0.00039483,120]
[422763969,1779371753000,-500.0,0.00039483,120]
[422763971,1779371753000,-500.0,0.00039483,120]
[422763980,1779371753000,-500.0,0.00039483,120]
[422763979,1779371753000,-3124.27,0.00039483,120]
[422763977,1779371753000,-3124.27,0.00039483,120]
[422763978,1779371753000,-500.0,0.00039483,120]
[422763970,1779371753000,-3124.27,0.00039483,120]
[422763975,1779371753000,-500.0,0.00039483,120]
[422763973,1779371753000,-469.3503774,0.00039483,120]
[422763974,1779371753000,-3124.27,0.00039483,120]
[422763972,1779371753000,-500.0,0.00039483,120]
[422763976,1779371753000,-609.77024842,0.00039483,120]
[422763990,1779371754000,-500.0,0.00039483,120]
[422763983,1779371754000,-500.0,0.00039483,120]
[422763982,1779371754000,-500.0,0.00039483,120]
[422763984,1779371754000,-3124.27,0.00039483,120]
[422763985,1779371754000,-225.74708542,0.00039483,120]
[422763987,1779371754000,-500.0,0.00039483,120]
[422763986,1779371754000,-500.0,0.00039483,120]
[422763989,1779371754000,-547.04101415,0.00039483,120]
[422763988,1779371754000,-3124.27,0.00039483,120]
[422763981,1779371754000,-3124.27,0.00039483,120]
[422763992,1779371754000,-500.0,0.00039483,120]
[422763994,1779371754000,-500.0,0.00039483,120]
[422763993,1779371754000,-3124.27,0.00039483,120]
[422763996,1779371754000,-3124.27,0.00039483,120]
[422763995,1779371754000,-461.07316035,0.00039483,120]
[422763997,1779371754000,-3124.27,0.00039483,120]
[422763998,1779371754000,-3124.27,0.00039483,120]
[422763999,1779371754000,-535.03408704,0.00039483,120]
[422764000,1779371754000,-3124.27,0.00039483,120]
[422764002,1779371754000,-3124.27,0.00039483,120]
[422764001,1779371754000,-3124.27,0.00039483,120]
[422763991,1779371754000,-3124.27,0.00039483,120]
[422764010,1779371755000,-3124.27,0.00039483,120]
[422764011,1779371755000,-500.0,0.00039483,120]
[422764008,1779371755000,-3124.27,0.00039483,120]
[422764009,1779371755000,-3124.27,0.00039483,120]
[422764003,1779371755000,-371.1517968,0.00039483,120]
[422764007,1779371755000,-3124.27,0.00039483,120]
[422764005,1779371755000,-234.04268389,0.00039483,120]
[422764004,1779371755000,-245.65992866,0.00039483,120]
[422764006,1779371755000,-3124.27,0.00039483,120]
[422764014,1779371755000,-632.55603084,0.00039483,120]
[422764013,1779371755000,-3124.43235763,0.00039483,120]
[422764015,1779371755000,-500.0,0.00039483,120]
[422764023,1779371755000,-200.0,0.00039483,120]
[422764022,1779371755000,-3747.18,0.00039483,120]
[422764021,1779371755000,-3747.18,0.00039483,120]
[422764020,1779371755000,-3747.18,0.00039483,120]
[422764012,1779371755000,-500.0,0.00039483,120]
[422764017,1779371755000,-169.39202402,0.00039483,120]
[422764018,1779371755000,-500.0,0.00039483,120]
[422764016,1779371755000,-211.82562613,0.00039483,120]
[422764019,1779371755000,-576.10661077,0.00039483,120]
[422764024,1779371756000,-3747.18,0.00039483,120]
[422764027,1779371756000,-3747.18,0.00039483,120]
[422764025,1779371756000,-500.0,0.00039483,120]
[422764026,1779371756000,-500.0,0.00039483,120]
[422764028,1779371756000,-485.6139128,0.00039483,120]
[422764029,1779371756000,-278.51284454,0.00039483,120]
[422764030,1779371756000,-1006.02985029,0.00039483,120]
[422764032,1779371756000,-3747.18,0.00039483,120]
[422764033,1779371756000,-176.20501379,0.00039483,120]
[422764035,1779371756000,-500.0,0.00039483,120]
[422764031,1779371756000,-562.58540321,0.00039483,120]
[422764046,1779371756000,-3747.18,0.00039483,120]
[422764036,1779371756000,-3747.18,0.00039483,120]
[422764045,1779371756000,-500.0,0.00039483,120]
[422764044,1779371756000,-603.75728165,0.00039483,120]
[422764042,1779371756000,-3747.18,0.00039483,120]
[422764043,1779371756000,-3747.18,0.00039483,120]
[422764034,1779371756000,-3747.18,0.00039483,120]
[422764041,1779371756000,-3747.18,0.00039483,120]
[422764039,1779371756000,-3747.18,0.00039483,120]
[422764038,1779371756000,-3747.18,0.00039483,120]
[422764037,1779371756000,-608.93339976,0.00039483,120]
[422764040,1779371756000,-347.48565292,0.00039483,120]
[422764047,1779371757000,-500.0,0.00039483,120]
[422764049,1779371757000,-500.0,0.00039483,120]
[422764048,1779371757000,-3747.18,0.00039483,120]
[422764050,1779371757000,-262.96421584,0.00039483,120]
[422764051,1779371757000,-188.20908645,0.00039483,120]
[422764053,1779371757000,-3747.18,0.00039483,120]
[422764052,1779371757000,-500.0,0.00039483,120]
[422764055,1779371757000,-3747.18,0.00039483,120]
[422764054,1779371757000,-586.19442887,0.00039483,120]
[422764056,1779371757000,-500.0,0.00039483,120]
[422764057,1779371757000,-3747.18,0.00039483,120]
[422764058,1779371757000,-433.95009646,0.00039483,120]
[422764067,1779371757000,-500.0,0.00039483,120]
[422764065,1779371757000,-1104.54195782,0.00039483,120]
[422764066,1779371757000,-301.68328429,0.00039483,30]
[422764063,1779371757000,-500.0,0.00039483,120]
[422764059,1779371757000,-500.0,0.00039483,120]
[422764061,1779371757000,-3747.18,0.00039483,120]
[422764062,1779371757000,-500.0,0.00039483,120]
[422764060,1779371757000,-500.0,0.00039483,120]
[422764064,1779371757000,-3747.18,0.00039483,120]
[422764077,1779371758000,-3747.18,0.00039483,120]
[422764070,1779371758000,-425.00163223,0.00039483,120]
[422764069,1779371758000,-3747.18,0.00039483,120]
[422764071,1779371758000,-500.0,0.00039483,120]
[422764073,1779371758000,-3747.18,0.00039483,120]
[422764072,1779371758000,-150.999999,0.00039483,120]
[422764075,1779371758000,-500.0,0.00039483,120]
[422764074,1779371758000,-500.0,0.00039483,120]
[422764076,1779371758000,-304.10946422,0.00039483,120]
[422764068,1779371758000,-264.27660271,0.00039483,30]
[422764078,1779371758000,-247.57702571,0.00039483,30]
[422764081,1779371758000,-290.62016298,0.00039483,120]
[422764080,1779371758000,-270.73546756,0.00039483,120]
[422764082,1779371758000,-173.80428177,0.00039483,120]
[422764084,1779371758000,-3747.34518775,0.00039483,120]
[422764083,1779371758000,-1370.96499881,0.00039483,30]
[422764086,1779371758000,-500.0,0.00039483,120]
[422764085,1779371758000,-300.35720473,0.00039483,120]
[422764087,1779371758000,-393.94821393,0.00039483,120]
[422764088,1779371758000,-717.85114663,0.00039483,120]
[422764089,1779371758000,-573.53128811,0.00039483,120]
[422764079,1779371758000,-500.0,0.00039483,120]
[422764098,1779371759000,-2603.36,0.00039483,120]
[422764096,1779371759000,-2603.36,0.00039483,120]
[422764097,1779371759000,-500.0,0.00039483,120]
[422764094,1779371759000,-965.18505439,0.00039483,30]
[422764090,1779371759000,-2603.36,0.00039483,120]
[422764092,1779371759000,-2603.36,0.00039483,120]
[422764093,1779371759000,-2603.36,0.00039483,120]
[422764091,1779371759000,-328.43079915,0.00039483,30]
[422764095,1779371759000,-500.0,0.00039483,120]
[422764099,1779371759000,-500.0,0.00039483,120]
[422764102,1779371759000,-287.44571291,0.00039483,120]
[422764100,1779371759000,-500.0,0.00039483,120]
[422764111,1779371759000,-640.20467455,0.00039483,120]
[422764110,1779371759000,-1817.81727335,0.00039483,30]
[422764109,1779371759000,-500.0,0.00039483,120]
[422764107,1779371759000,-500.0,0.00039483,120]
[422764101,1779371759000,-1224.51165298,0.00039483,30]
[422764105,1779371759000,-204.9971861,0.00039483,120]
[422764106,1779371759000,-164.93974306,0.00039483,60]
[422764103,1779371759000,-524.06125559,0.00039483,120]
[422764104,1779371759000,-2603.36,0.00039483,120]
[422764108,1779371759000,-2603.36,0.00039483,120]
[422764121,1779371760000,-2603.36,0.00039483,120]
[422764112,1779371760000,-2603.36,0.00039483,120]
[422764114,1779371760000,-2603.36,0.00039483,120]
[422764115,1779371760000,-761.95915235,0.00039483,30]
[422764117,1779371760000,-530.99,0.00039483,120]
[422764116,1779371760000,-2603.36,0.00039483,120]
[422764118,1779371760000,-2603.36,0.00039483,120]
[422764119,1779371760000,-608.15775006,0.00039483,30]
[422764120,1779371760000,-530.99,0.00039483,120]
[422764113,1779371760000,-168.75376013,0.00039483,120]
[422764122,1779371760000,-530.99,0.00039483,120]
[422764125,1779371760000,-2603.36,0.00039483,120]
[422764124,1779371760000,-530.99,0.00039483,120]
[422764127,1779371760000,-530.99,0.00039483,120]
[422764126,1779371760000,-834.58586748,0.00039483,120]
[422764128,1779371760000,-232.73294153,0.00039483,120]
[422764129,1779371760000,-500.0,0.00039483,120]
[422764130,1779371760000,-2603.36,0.00039483,120]
[422764132,1779371760000,-500.0,0.00039483,120]
[422764131,1779371760000,-530.99,0.00039483,120]
[422764123,1779371760000,-262.39562969,0.00039483,120]
[422764141,1779371761000,-530.99,0.00039483,120]
[422764140,1779371761000,-2603.36,0.00039483,120]
[422764139,1779371761000,-530.99,0.00039483,120]
[422764138,1779371761000,-317.82361333,0.00039483,120]
[422764134,1779371761000,-2603.36,0.00039483,120]
[422764136,1779371761000,-279.04808287,0.00039483,120]
[422764135,1779371761000,-530.99,0.00039483,120]
[422764133,1779371761000,-580.15169949,0.00039483,120]
[422764137,1779371761000,-446.73638566,0.00039483,120]
[422764142,1779371761000,-500.0,0.00039483,120]
[422764144,1779371761000,-530.99,0.00039483,120]
[422764145,1779371761000,-500.0,0.00039483,120]
[422764152,1779371761000,-530.99,0.00039483,120]
[422764153,1779371761000,-457.01848619,0.00039483,120]
[422764150,1779371761000,-519.23140419,0.00039483,120]
[422764151,1779371761000,-2603.36,0.00039483,120]
[422764143,1779371761000,-2603.36,0.00039483,120]
[422764149,1779371761000,-530.99,0.00039483,120]
[422764147,1779371761000,-2603.36,0.00039483,120]
[422764146,1779371761000,-530.99,0.00039483,120]
[422764148,1779371761000,-500.0,0.00039483,120]
[422764161,1779371762000,-2603.36,0.00039483,120]
[422764155,1779371762000,-530.99,0.00039483,120]
[422764156,1779371762000,-2603.36,0.00039483,120]
[422764157,1779371762000,-291.54319882,0.00039483,120]
[422764158,1779371762000,-530.99,0.00039483,120]
[422764159,1779371762000,-628.39018443,0.00039483,120]
[422764160,1779371762000,-307.86728159,0.00039483,120]
[422764162,1779371762000,-530.99,0.00039483,120]
[422764154,1779371762000,-2603.36,0.00039483,120]
[422764163,1779371762000,-236.49140125,0.00039483,120]
[422764165,1779371762000,-500.0,0.00039483,120]
[422764166,1779371762000,-2603.36,0.00039483,120]
[422764167,1779371762000,-500.0,0.00039483,120]
[422764169,1779371762000,-500.0,0.00039483,120]
[422764168,1779371762000,-530.99,0.00039483,120]
[422764171,1779371762000,-500.0,0.00039483,120]
[422764170,1779371762000,-2603.49375646,0.00039483,120]
[422764172,1779371762000,-530.99,0.00039483,120]
[422764173,1779371762000,-500.0,0.00039483,120]
[422764164,1779371762000,-530.99,0.00039483,120]
[422764180,1779371763000,-593.86108303,0.00039483,120]
[422764179,1779371763000,-530.99,0.00039483,120]
[422764178,1779371763000,-500.0,0.00039483,120]
[422764181,1779371763000,-520.88474616,0.00039483,120]
[422764176,1779371763000,-500.0,0.00039483,120]
[422764175,1779371763000,-530.99,0.00039483,120]
[422764174,1779371763000,-309.73039008,0.00039483,120]
[422764177,1779371763000,-530.99,0.00039483,120]
[422764183,1779371763000,-531.0309405,0.00039483,120]
[422764185,1779371763000,-182.80172311,0.00039483,120]
[422764184,1779371763000,-192.35075644,0.00039483,120]
[422764182,1779371763000,-530.99,0.00039483,120]
[422764190,1779371763000,-584.57022209,0.00039483,120]
[422764191,1779371763000,-195.66869715,0.00039483,120]
[422764188,1779371763000,-600.09298923,0.00039483,120]
[422764193,1779371763000,-465.47162994,0.00039483,30]
[422764186,1779371763000,-500.0,0.00039483,120]
[422764187,1779371763000,-298.47680726,0.00039483,120]
[422764192,1779371763000,-384.37316838,0.00039483,120]
[422764189,1779371763000,-500.0,0.00039483,120]
[422764201,1779371764000,-261.37726504,0.00039483,120]
[422764194,1779371764000,-339.93829691,0.00039483,120]
[422764195,1779371764000,-223.71577344,0.00039483,30]
[422764196,1779371764000,-505.79913508,0.00039483,120]
[422764197,1779371764000,-483.10559806,0.00039483,120]
[422764199,1779371764000,-293.21483723,0.00039483,120]
[422764200,1779371764000,-500.0,0.00039483,120]
[422764202,1779371764000,-777.927624,0.00039483,30]
[422764198,1779371764000,-195.50502402,0.00039483,120]
[422764204,1779371764000,-331.55773483,0.00039483,120]
[422764205,1779371764000,-265.45664589,0.00039483,120]
[422764206,1779371764000,-500.0,0.00039483,120]
[422764207,1779371764000,-654.73285935,0.00039483,30]
[422764211,1779371764000,-545.20206612,0.00039483,120]
[422764208,1779371764000,-282.93311256,0.00039483,120]
[422764209,1779371764000,-500.0,0.00039483,120]
[422764210,1779371764000,-500.0,0.00039483,120]
[422764212,1779371764000,-312.93475711,0.00039483,30]
[422764203,1779371764000,-500.0,0.00039483,120]
[422764213,1779371765000,-177.14049491,0.00039483,120]
[422764214,1779371765000,-285.22802555,0.00039483,120]
[422764215,1779371765000,-199.67654657,0.00039483,120]
[422764217,1779371765000,-591.60691337,0.00039483,30]
[422764216,1779371765000,-208.20252868,0.00039483,120]
[422764218,1779371765000,-1341.94033224,0.00039483,30]
[422764219,1779371765000,-500.0,0.00039483,120]
[422764222,1779371765000,-175.12570483,0.00039483,120]
[422764221,1779371765000,-610.09937592,0.00039483,120]
[422764224,1779371765000,-561.72108427,0.00039483,120]
[422764220,1779371765000,-500.0,0.00039483,120]
[422764239,1779371766000,-326.72192645,0.00039483,30]
[422764234,1779371766000,-410.64744382,0.00039483,120]
[422764233,1779371766000,-500.0,0.00039483,120]
[422764235,1779371766000,-500.0,0.00039483,120]
[422764236,1779371766000,-500.0,0.00039483,120]
[422764237,1779371766000,-1009.2831289,0.00039483,120]
[422764238,1779371766000,-500.0,0.00039483,120]
[422764240,1779371766000,-424.47411653,0.00039483,120]
[422764247,1779371766000,-180.97617688,0.00039483,120]
[422764241,1779371766000,-500.0,0.00039483,120]
[422764249,1779371766000,-700.9,0.00039483,120]
[422764248,1779371766000,-172.71727385,0.00039483,120]
[422764250,1779371766000,-500.0,0.00039483,120]
[422764242,1779371766000,-500.0,0.00039483,120]
[422764245,1779371766000,-500.0,0.00039483,120]
[422764244,1779371766000,-500.0,0.00039483,120]
[422764243,1779371766000,-443.00667994,0.00039483,120]
[422764246,1779371766000,-3996.00867141,0.00039483,30]
[422764259,1779371767000,-500.0,0.00039483,120]
[422764251,1779371767000,-2389.98791648,0.00039483,30]
[422764253,1779371767000,-700.9,0.00039483,120]
[422764255,1779371767000,-546.04082466,0.00039483,120]
[422764254,1779371767000,-500.0,0.00039483,120]
[422764257,1779371767000,-186.94432217,0.00039483,120]
[422764256,1779371767000,-154.40775129,0.00039483,120]
[422764252,1779371767000,-278.55456947,0.00039483,120]
[422764258,1779371767000,-700.9,0.00039483,120]
[422764260,1779371767000,-700.9,0.00039483,120]
[422764263,1779371767000,-275.62299217,0.00039483,120]
[422764262,1779371767000,-370.24005357,0.00039483,31]
[422764265,1779371767000,-190.63288002,0.00039483,120]
[422764264,1779371767000,-700.9,0.00039483,120]
[422764267,1779371767000,-700.9,0.00039483,120]
[422764266,1779371767000,-956.6202048,0.00039483,30]
[422764268,1779371767000,-700.9,0.00039483,120]
[422764269,1779371767000,-535.21065397,0.00039483,120]
[422764261,1779371767000,-349.93142755,0.00039483,30]
[422764278,1779371768000,-825.01773058,0.00039483,120]
[422764274,1779371768000,-180.65563577,0.00039483,30]
[422764275,1779371768000,-700.9,0.00039483,120]
[422764277,1779371768000,-700.9,0.00039483,120]
[422764272,1779371768000,-2569.70778368,0.00039483,30]
[422764271,1779371768000,-700.9,0.00039483,120]
[422764270,1779371768000,-219.65123328,0.00039483,120]
[422764273,1779371768000,-700.9,0.00039483,120]
[422764276,1779371768000,-199.29447049,0.00039483,120]
[422764283,1779371768000,-700.9,0.00039483,120]
[422764279,1779371768000,-184.46470023,0.00039483,60]
[422764287,1779371768000,-6271.11262548,0.00039483,30]
[422764288,1779371768000,-2740.46786301,0.00039483,60]
[422764285,1779371768000,-700.9,0.00039483,120]
[422764286,1779371768000,-1008.38958174,0.00039483,120]
[422764280,1779371768000,-408.05951958,0.00039483,120]
[422764284,1779371768000,-500.0,0.00039483,120]
[422764281,1779371768000,-700.9,0.00039483,120]
[422764282,1779371768000,-500.0,0.00039483,120]
[422764289,1779371768000,-500.0,0.00039483,120]
[422764290,1779371769000,-700.9,0.00039483,120]
[422764291,1779371769000,-2148.36972061,0.00039483,120]
[422764292,1779371769000,-176.62038207,0.00039483,120]
[422764293,1779371769000,-165.80064009,0.00039483,30]
[422764294,1779371769000,-700.9,0.00039483,120]
[422764296,1779371769000,-500.0,0.00039483,120]
[422764298,1779371769000,-343.08132363,0.00039483,120]
[422764297,1779371769000,-328.29740922,0.00039483,60]
[422764295,1779371769000,-500.0,0.00039483,120]
[422764309,1779371769000,-700.9,0.00039483,120]
[422764299,1779371769000,-500.0,0.00039483,120]
[422764307,1779371769000,-500.0,0.00039483,120]
[422764308,1779371769000,-500.0,0.00039483,120]
[422764306,1779371769000,-244.6748852,0.00039483,30]
[422764300,1779371769000,-162.59092479,0.00039483,30]
[422764304,1779371769000,-700.9,0.00039483,120]
[422764303,1779371769000,-471.72258774,0.00039483,120]
[422764301,1779371769000,-500.0,0.00039483,120]
[422764302,1779371769000,-500.0,0.00039483,120]
[422764305,1779371769000,-500.0,0.00039483,120]
[422764310,1779371770000,-500.0,0.00039483,120]
[422764311,1779371770000,-500.0,0.00039483,120]
[422764312,1779371770000,-165.41652676,0.00039483,120]
[422764313,1779371770000,-700.9,0.00039483,120]
[422764314,1779371770000,-500.0,0.00039483,120]
[422764315,1779371770000,-3258.59636502,0.00039483,120]
[422764316,1779371770000,-283.48553059,0.00039483,120]
[422764317,1779371770000,-500.0,0.00039483,120]
[422764318,1779371770000,-700.9,0.00039483,120]
[422764319,1779371770000,-500.0,0.00039483,120]
[422764321,1779371770000,-500.0,0.00039483,120]
[422764327,1779371770000,-1600.22132076,0.00039483,60]
[422764328,1779371770000,-958.98782979,0.00039483,120]
[422764326,1779371770000,-700.9,0.00039483,120]
[422764320,1779371770000,-361.40033307,0.00039483,90]
[422764324,1779371770000,-500.0,0.00039483,120]
[422764323,1779371770000,-700.9,0.00039483,120]
[422764322,1779371770000,-530.93789435,0.00039483,120]
[422764325,1779371770000,-609.33847612,0.00039483,30]
[422764336,1779371771000,-329.12148185,0.00039483,120]
[422764329,1779371771000,-500.0,0.00039483,120]
[422764331,1779371771000,-488.83387743,0.00039483,120]
[422764332,1779371771000,-339.20144767,0.00039483,120]
[422764333,1779371771000,-614.16509028,0.00039483,120]
[422764335,1779371771000,-701.03432596,0.00039483,120]
[422764334,1779371771000,-215.54043561,0.00039483,120]
[422764330,1779371771000,-700.9,0.00039483,120]
[422764338,1779371771000,-159.26449175,0.00039483,120]
[422764340,1779371771000,-500.0,0.00039483,120]
[422764339,1779371771000,-500.0,0.00039483,120]
[422764342,1779371771000,-452.86861594,0.00039483,120]
[422764341,1779371771000,-500.0,0.00039483,120]
[422764343,1779371771000,-500.0,0.00039483,120]
[422764344,1779371771000,-587.39801307,0.00039483,120]
[422764345,1779371771000,-401.14510918,0.00039483,120]
[422764346,1779371771000,-500.0,0.00039483,120]
[422764347,1779371771000,-359.32549552,0.00039483,120]
[422764337,1779371771000,-243.33375986,0.00039483,120]
[422764355,1779371772000,-500.0,0.00039483,120]
[422764354,1779371772000,-196.04476706,0.00039483,120]
[422764353,1779371772000,-454.19584226,0.00039483,120]
[422764356,1779371772000,-500.0,0.00039483,120]
[422764350,1779371772000,-357.14122157,0.00039483,120]
[422764349,1779371772000,-500.0,0.00039483,120]
[422764348,1779371772000,-500.0,0.00039483,120]
[422764352,1779371772000,-500.0,0.00039483,120]
[422764357,1779371772000,-500.0,0.00039483,120]
[422764351,1779371772000,-500.0,0.00039483,120]
[422764359,1779371772000,-500.0,0.00039483,120]
[422764366,1779371772000,-500.0,0.00039483,120]
[422764367,1779371772000,-239.66583509,0.00039483,120]
[422764364,1779371772000,-493.67140732,0.00039483,120]
[422764368,1779371772000,-500.0,0.00039483,120]
[422764358,1779371772000,-500.0,0.00039483,120]
[422764362,1779371772000,-372.27407651,0.00039483,120]
[422764363,1779371772000,-500.0,0.00039483,120]
[422764361,1779371772000,-500.0,0.00039483,120]
[422764360,1779371772000,-201.89252273,0.00039483,120]
[422764365,1779371772000,-500.0,0.00039483,120]
[422764376,1779371773000,-500.0,0.00039483,120]
[422764369,1779371773000,-377.59701815,0.00039483,120]
[422764371,1779371773000,-432.69846952,0.00039483,120]
[422764370,1779371773000,-500.0,0.00039483,120]
[422764373,1779371773000,-500.0,0.00039483,120]
[422764372,1779371773000,-500.0,0.00039483,120]
[422764375,1779371773000,-500.0,0.00039483,120]
[422764374,1779371773000,-500.0,0.00039483,120]
[422764377,1779371773000,-500.0,0.00039483,120]
[422764378,1779371773000,-500.0,0.00039483,120]
[422764379,1779371773000,-500.0,0.00039483,120]
[422764380,1779371773000,-500.0,0.00039483,120]
[422764388,1779371773000,-244.98691345,0.00039483,120]
[422764387,1779371773000,-500.0,0.00039483,120]
[422764385,1779371773000,-583.04018976,0.00039483,120]
[422764386,1779371773000,-500.0,0.00039483,120]
[422764389,1779371773000,-500.0,0.00039483,120]
[422764384,1779371773000,-500.0,0.00039483,120]
[422764382,1779371773000,-500.0,0.00039483,120]
[422764381,1779371773000,-500.0,0.00039483,120]
[422764383,1779371773000,-500.0,0.00039483,120]
[422764396,1779371774000,-500.0,0.00039483,120]
[422764390,1779371774000,-500.0,0.00039483,120]
[422764392,1779371774000,-238.6457748,0.00039483,120]
[422764391,1779371774000,-500.0,0.00039483,120]
[422764393,1779371774000,-500.0,0.00039483,120]
[422764395,1779371774000,-552.13283455,0.00039483,120]
[422764394,1779371774000,-620.56552502,0.00039483,120]
[422764397,1779371774000,-500.0,0.00039483,120]
[422764398,1779371774000,-500.0,0.00039483,120]
[422764400,1779371774000,-500.0,0.00039483,120]
[422764409,1779371774000,-306.07964459,0.00039483,120]
[422764408,1779371774000,-546.9827946,0.00039483,120]
[422764406,1779371774000,-500.0,0.00039483,120]
[422764407,1779371774000,-560.02211438,0.00039483,120]
[422764405,1779371774000,-526.28948628,0.00039483,120]
[422764399,1779371774000,-500.0,0.00039483,120]
[422764402,1779371774000,-190.96653807,0.00039483,120]
[422764403,1779371774000,-173.21704908,0.00039483,120]
[422764401,1779371774000,-567.18674853,0.00039483,120]
[422764404,1779371774000,-490.62618065,0.00039483,120]
[422764420,1779371775000,-163.06416596,0.00039483,120]
[422764411,1779371775000,-290.7822129,0.00039483,120]
[422764410,1779371775000,-357.59711348,0.00039483,120]
[422764413,1779371775000,-224.72356142,0.00039483,120]